fUST/lending_fUST_20241031
["ID","MTS","AMOUNT","RATE_DAILY","PERIOD"]
[341067129,1730321262324,-728.9,0.00036164,12]
[341067130,1730321262347,-933.05,0.00036164,12]
[341067131,1730321262369,-500.0,0.00036164,12]
[341067132,1730321262391,-500.0,0.00036164,12]
[341067133,1730321262419,-616.42,0.00036164,12]
[341067134,1730321262443,-500.0,0.00036164,12]
[341067135,1730321262464,-339.35318574,0.00036164,12]
[341067136,1730321262487,-504.13077146,0.00036164,12]
[341067137,1730321262511,-500.0,0.00036164,12]
[341067138,1730321262535,-18157.52,0.00036164,3]
[341067139,1730321262558,-1000.0,0.00036164,120]
[341067140,1730321262582,-500.0,0.00036164,12]
[341067141,1730321262604,-620.03962273,0.00036164,12]
[341067142,1730321262628,-2051.13,0.00036164,12]
[341067143,1730321262651,-341.12,0.00036164,12]
[341067144,1730321262675,-500.0,0.00036164,12]
[341067145,1730321262699,-845.12,0.00036164,12]
[341067146,1730321262720,-500.0,0.00036164,12]
[341067147,1730321262743,-778.04,0.00036164,12]
[341067148,1730321262769,-725.4,0.00036164,12]
[341067149,1730321262792,-500.0,0.00036164,12]
[341067150,1730321262815,-248.40015235,0.00036164,12]
[341067151,1730321262839,-500.0,0.00036164,12]
[341067152,1730321262862,-1223.95,0.00036164,12]
[341067153,1730321262957,-9397.24,0.00036164,12]
[341067154,1730321262982,-162.0,0.00036247,2]
[341067155,1730321263005,-500.0,0.0003626,120]
[341067156,1730321263027,-500.0,0.0003626,120]
[341067157,1730321263050,-500.0,0.0003626,120]
[341067158,1730321263071,-500.0,0.0003626,120]
[341067159,1730321263100,-500.0,0.0003626,120]
[341067160,1730321263121,-500.0,0.0003626,120]
[341067161,1730321263143,-500.0,0.0003626,120]
[341067162,1730321263167,-500.0,0.0003626,120]
[341067163,1730321263189,-500.0,0.0003626,120]
[341067164,1730321263212,-500.0,0.0003626,120]
[341067165,1730321263234,-500.0,0.0003626,120]
[341067166,1730321263255,-500.0,0.0003626,120]
[341067167,1730321263278,-500.0,0.0003626,120]
[341067168,1730321263299,-500.0,0.0003626,120]
[341067169,1730321263322,-500.0,0.0003626,120]
[341067170,1730321263347,-500.0,0.0003626,120]
[341067171,1730321263368,-500.0,0.0003626,120]
[341067172,1730321263390,-500.0,0.0003626,120]
[341067173,1730321263412,-500.0,0.0003626,120]
[341067174,1730321263434,-500.0,0.0003626,120]
[341067175,1730321263456,-457.11,0.0003626,120]
[341067176,1730321263478,-500.0,0.0003626,120]
[341067177,1730321263500,-500.0,0.0003626,120]
[341067178,1730321263521,-294.42,0.0003626,120]
[341067179,1730321263544,-409.0,0.00036299,2]
[341067180,1730321263565,-195.28,0.000363,30]
[341067181,1730321263590,-163.162804,0.00036339,2]
[341067182,1730321263611,-1738.5318934,0.0003634,2]
[341067183,1730321263631,-160.0,0.00036341,6]
[341067184,1730321263655,-157.14,0.0003639,31]
[341067185,1730321263677,-155.56,0.000364,30]
[341067186,1730321263699,-500.0,0.00036438,12]
[341067187,1730321263720,-500.0,0.00036438,12]
[341067188,1730321263742,-500.0,0.00036438,12]
[341067189,1730321263764,-500.0,0.00036438,12]
[341067190,1730321263785,-306.94754284,0.00036438,12]
[341067191,1730321263806,-500.0,0.00036438,12]
[341067192,1730321263828,-500.0,0.00036438,12]
[341067193,1730321263850,-500.0,0.00036438,12]
[341067194,1730321263871,-500.0,0.00036438,12]
[341067195,1730321263892,-500.0,0.00036438,12]
[341067196,1730321263913,-500.0,0.00036438,12]
[341067197,1730321263935,-668.7,0.00036438,12]
[341067198,1730321263956,-417.68,0.00036438,12]
[341067199,1730321263980,-425.8924421,0.00036438,12]
[341067200,1730321264000,-552.81788738,0.00036438,12]
[341067201,1730321264021,-500.0,0.00036438,12]
[341067202,1730321264044,-500.0,0.00036438,12]
[341067203,1730321264066,-500.0,0.00036438,12]
[341067204,1730321264089,-500.0,0.00036438,12]
[341067205,1730321264110,-500.0,0.00036438,12]
[341067206,1730321264131,-500.0,0.00036438,12]
[341067207,1730321264218,-500.0,0.00036438,12]
[341067208,1730321264241,-500.0,0.00036438,12]
[341067209,1730321264263,-500.0,0.00036438,12]
[341067210,1730321264286,-500.0,0.00036438,12]
[341067211,1730321264309,-500.0,0.00036438,12]
[341067212,1730321264331,-500.0,0.00036438,12]
[341067213,1730321264353,-508.53712693,0.00036438,12]
[341067214,1730321264375,-1177.63,0.00036438,12]
[341067215,1730321264396,-325.38232737,0.00036438,12]
[341067216,1730321264418,-2473.68,0.00036438,12]
[341067217,1730321264443,-500.0,0.00036438,12]
[341067218,1730321264465,-500.0,0.00036438,12]
[341067219,1730321264488,-500.0,0.00036438,12]
[341067220,1730321264511,-500.0,0.00036438,12]
[341067221,1730321264535,-1801.0,0.00036438,14]
[341067222,1730321264556,-500.0,0.00036438,2]
[341067223,1730321264580,-500.0,0.00036438,12]
[341067224,1730321264603,-286.8010644,0.00036438,14]
[341067225,1730321264626,-500.0,0.00036438,12]
[341067226,1730321264649,-500.0,0.00036438,12]
[341067227,1730321264672,-500.0,0.00036438,12]
[341067228,1730321264696,-500.0,0.00036438,12]
[341067229,1730321264724,-500.0,0.00036438,12]
[341067230,1730321264748,-500.0,0.00036438,12]
[341067231,1730321264772,-500.0,0.00036438,12]
[341067232,1730321264797,-500.0,0.00036438,12]
[341067233,1730321264821,-500.0,0.00036438,12]
[341067234,1730321264845,-500.0,0.00036438,12]
[341067235,1730321264867,-500.0,0.00036438,12]
[341067236,1730321264889,-500.0,0.00036438,12]
[341067237,1730321264914,-293.58767887,0.00036438,12]
[341067238,1730321264937,-500.0,0.00036438,12]
[341067239,1730321264962,-500.0,0.00036438,12]
[341067240,1730321264985,-500.0,0.00036438,12]
[341067241,1730321265010,-3037.05,0.00036438,120]
[341067242,1730321265034,-300.29223484,0.00036438,12]
[341067243,1730321265060,-500.0,0.00036438,12]
[341067244,1730321265084,-719.52,0.00036438,12]
[341067245,1730321265106,-151.0,0.00036438,14]
[341067246,1730321265131,-500.0,0.00036438,12]
[341067247,1730321265153,-151.0,0.00036438,2]
[341067248,1730321265176,-500.0,0.00036438,14]
[341067249,1730321265198,-500.0,0.00036438,14]
[341067250,1730321265223,-500.0,0.00036438,12]
[341067251,1730321265248,-500.0,0.00036438,12]
[341067252,1730321265272,-500.0,0.00036438,12]
[341067253,1730321265296,-500.0,0.00036438,12]
[341067254,1730321265320,-500.0,0.00036438,12]
[341067255,1730321265345,-500.0,0.00036438,12]
[341067256,1730321265366,-207.01721544,0.00036438,12]
[341067257,1730321265388,-500.0,0.00036438,12]
[341067258,1730321265486,-500.0,0.00036438,12]
[341067259,1730321265509,-500.0,0.00036438,12]
[341067260,1730321265532,-500.0,0.00036438,12]
[341067261,1730321265555,-500.0,0.00036438,12]
[341067262,1730321265578,-500.0,0.00036438,12]
[341067263,1730321265603,-500.0,0.00036438,12]
[341067264,1730321265629,-1211.42,0.00036438,12]
[341067265,1730321265652,-2404.23,0.00036438,12]
[341067266,1730321265676,-7781.74,0.00036438,12]
[341067267,1730321265699,-865.25,0.00036438,12]
[341067268,1730321265721,-445.51211059,0.00036438,12]
[341067269,1730321265744,-513.64,0.00036438,12]
[341067270,1730321265767,-500.0,0.00036438,12]
[341067271,1730321265792,-500.0,0.00036438,12]
[341067272,1730321265817,-4364.41,0.00036438,12]
[341067273,1730321265841,-5922.16,0.00036438,12]
[341067274,1730321265863,-500.0,0.00036438,12]
[341067275,1730321265889,-500.0,0.00036438,12]
[341067276,1730321265913,-728.9,0.00036438,12]
[341067277,1730321265937,-933.05,0.00036438,12]
[341067278,1730321265964,-500.0,0.00036438,12]
[341067279,1730321265989,-369.83426657,0.00036438,12]
[341067280,1730321266013,-616.42,0.00036438,12]
[341067281,1730321266036,-500.0,0.00036438,12]
[341067282,1730321266061,-18157.52,0.00036438,3]
[341067283,1730321266085,-1000.0,0.00036438,120]
[341067284,1730321266110,-500.0,0.00036438,12]
[341067285,1730321266133,-2051.13,0.00036438,12]
[341067286,1730321266155,-500.0,0.00036438,12]
[341067287,1730321266180,-845.12,0.00036438,12]
[341067288,1730321266202,-500.0,0.00036438,12]
[341067289,1730321266227,-778.04,0.00036438,12]
[341067290,1730321266250,-725.4,0.00036438,12]
[341067291,1730321266273,-500.0,0.00036438,12]
[341067292,1730321266296,-500.0,0.00036438,12]
[341067293,1730321266321,-1223.95,0.00036438,12]
[341067294,1730321266347,-9397.24,0.00036438,12]
[341067295,1730321266371,-317.5972458,0.00036443,2]
[341067296,1730321266395,-150.0,0.00036451,120]
[341067297,1730321266418,-1381.88,0.000365,30]
[341067298,1730321266441,-1147.42,0.000365,30]
[341067299,1730321266464,-150.0,0.00036563,120]
[341067300,1730321266490,-999.0,0.00036575,120]
[341067301,1730321266513,-192.454554,0.00036628,2]
[341067302,1730321266536,-195.661355,0.00036628,2]
[341067303,1730321266560,-181.539339,0.00036628,2]
[341067304,1730321266583,-193.339578,0.00036628,2]
[341067305,1730321266604,-167.192242,0.00036628,2]
[341067306,1730321266627,-907.696698,0.00036628,2]
[341067307,1730321266708,-410.06897,0.00036628,2]
[341067308,1730321266734,-151.282786,0.00036628,2]
[341067309,1730321266757,-205.034485,0.00036628,2]
[341067310,1730321266779,-162.079279,0.00036628,2]
[341067311,1730321266800,-151.282783,0.00036628,2]
[341067312,1730321266822,-167.192241,0.00036628,2]
[341067313,1730321266847,-153.775864,0.00036628,2]
[341067314,1730321266868,-151.282783,0.00036628,2]
[341067315,1730321266889,-250.0,0.00036632,2]
[341067316,1730321266911,-150.0,0.00036632,2]
[341067317,1730321266933,-162.0,0.00036675,15]
[341067318,1730321266956,-515.79628144,0.00036685,60]
[341067319,1730321266980,-1801.0,0.00036712,14]
[341067320,1730321267002,-151.0,0.00036712,14]
[341067321,1730321267028,-180.90108313,0.00036712,2]
[341067322,1730321267054,-551.23361394,0.00036712,14]
[341067323,1730321267076,-862.4433843,0.00036712,14]
[341067324,1730321267099,-500.0,0.00036712,12]
[341067325,1730321267121,-179.05,0.00036712,12]
[341067326,1730321267143,-500.0,0.00036712,12]
[341067327,1730321267164,-500.0,0.00036712,12]
[341067328,1730321267185,-500.0,0.00036712,12]
[341067329,1730321267206,-500.0,0.00036712,12]
[341067330,1730321267228,-500.0,0.00036712,12]
[341067331,1730321267250,-500.0,0.00036712,12]
[341067332,1730321267271,-229.23244583,0.00036712,12]
[341067333,1730321267292,-668.7,0.00036712,12]
[341067334,1730321267313,-500.0,0.00036712,12]
[341067335,1730321267336,-500.0,0.00036712,12]
[341067336,1730321267358,-500.0,0.00036712,12]
[341067337,1730321267381,-500.0,0.00036712,12]
[341067338,1730321267404,-518.06939998,0.00036712,12]
[341067339,1730321267425,-500.0,0.00036712,12]
[341067340,1730321267447,-500.0,0.00036712,12]
[341067341,1730321267471,-500.0,0.00036712,12]
[341067342,1730321267493,-500.0,0.00036712,12]
[341067343,1730321267515,-500.0,0.00036712,12]
[341067344,1730321267537,-500.0,0.00036712,12]
[341067345,1730321267559,-500.0,0.00036712,12]
[341067346,1730321267580,-1177.63,0.00036712,12]
[341067347,1730321267603,-2473.68,0.00036712,12]
[341067348,1730321267626,-500.0,0.00036712,12]
[341067349,1730321267648,-500.0,0.00036712,12]
[341067350,1730321267669,-1000.0,0.00036712,120]
[341067351,1730321267691,-1000.0,0.00036712,120]
[341067352,1730321267712,-500.0,0.00036712,12]
[341067353,1730321267735,-500.0,0.00036712,12]
[341067354,1730321267759,-500.0,0.00036712,2]
[341067355,1730321267839,-500.0,0.00036712,12]
[341067356,1730321267860,-500.0,0.00036712,12]
[341067357,1730321267883,-500.0,0.00036712,12]
[341067358,1730321267905,-177.37171514,0.00036712,12]
[341067359,1730321267927,-500.0,0.00036712,12]
[341067360,1730321267950,-500.0,0.00036712,12]
[341067361,1730321267978,-500.0,0.00036712,12]
[341067362,1730321268001,-500.0,0.00036712,12]
[341067363,1730321268025,-500.0,0.00036712,12]
[341067364,1730321268049,-500.0,0.00036712,12]
[341067365,1730321268073,-434.53455159,0.00036712,12]
[341067366,1730321268098,-165.865392,0.00036712,12]
[341067367,1730321268122,-500.0,0.00036712,12]
[341067368,1730321268144,-500.0,0.00036712,12]
[341067369,1730321268168,-500.0,0.00036712,12]
[341067370,1730321268193,-3037.05,0.00036712,120]
[341067371,1730321268215,-500.0,0.00036712,12]
[341067372,1730321268240,-719.52,0.00036712,12]
[341067373,1730321268264,-500.0,0.00036712,12]
[341067374,1730321268288,-500.0,0.00036712,12]
[341067375,1730321268310,-500.0,0.00036712,12]
[341067376,1730321268333,-500.0,0.00036712,12]
[341067377,1730321268356,-500.0,0.00036712,12]
[341067378,1730321268379,-500.0,0.00036712,12]
[341067379,1730321268402,-500.0,0.00036712,12]
[341067380,1730321268425,-500.0,0.00036712,12]
[341067381,1730321268448,-500.0,0.00036712,12]
[341067382,1730321268472,-500.0,0.00036712,12]
[341067383,1730321268496,-500.0,0.00036712,12]
[341067384,1730321268519,-500.0,0.00036712,12]
[341067385,1730321268543,-568.6472755,0.00036712,12]
[341067386,1730321268568,-1211.42,0.00036712,12]
[341067387,1730321268591,-1236.93517332,0.00036712,12]
[341067388,1730321269076,-372.477957,0.00034472,14]
[341067389,1730321269101,-695.50064086,0.00034899,2]
[341067390,1730321269123,-799.30140792,0.00036712,12]
[341067391,1730321351142,456.5,0.00034472,30]
[341067458,1730321432427,-192.94208789,0.00034031,2]
[341067460,1730321432441,-1000.0,0.00034372,2]
[341067462,1730321432451,-232.36,0.00034462,10]
[341067464,1730321432460,-562.35265506,0.00034471,7]
[341067466,1730321432471,-286.57278133,0.00034471,7]
[341067468,1730321432482,-151.0,0.00034472,14]
[341067470,1730321432492,-151.0,0.00034472,14]
[341067472,1730321432502,-239.34047357,0.00034472,7]
[341067474,1730321432512,-101561.0,0.00034472,2]
[341067476,1730321432522,-89647.13768638,0.00034472,2]
[341067478,1730321432532,-44979.13115781,0.00034472,2]
[341067482,1730321432558,-8111.550495,0.00034472,2]
[341067558,1730321442808,-9856.37200215,0.00034472,2]
[341067559,1730321442818,-6474.70859497,0.00034472,2]
[341067560,1730321442827,-50879.85460882,0.00034472,2]
[341067561,1730321442837,-10135.26960066,0.00034472,2]
[341067562,1730321442846,-2643.6953154,0.00034472,2]
[341067565,1730321443520,-7223.9651892,0.00034472,2]
[341067566,1730321443529,-574.3697878,0.00034472,5]
[341067567,1730321443545,-2010.25245432,0.00034472,5]
[341067568,1730321443557,-1953.6539622,0.00034472,5]
[341067593,1730321453572,-116236.220976,0.00034472,5]
[341067594,1730321453757,-193.63,0.00034462,10]
[341067595,1730321453767,-1608.538784,0.00034472,5]
[341067596,1730321453821,-32.26468614,0.00034472,5]
[341067597,1730321454049,-31.88625413,0.00034472,5]
[341067598,1730321454420,-160.0,0.0003,2]
[341067599,1730321454430,-15648.3614,0.00034472,5]
[341067600,1730321454519,-7273.1,0.00034472,5]
[341067601,1730321454658,-207.4755562,0.00034472,5]
[341067602,1730321454706,-249.66142663,0.00034472,5]
[341067608,1730321717179,169.155374,0.00013973,2]
[341067610,1730322318998,165.202339,0.00013973,2]
[341067611,1730322346220,-165.202339,0.00027641,2]
[341067612,1730322346244,-255.23,0.0003,60]
[341067613,1730322346266,-89.64681126,0.0003,2]
[341067642,1730322632919,-610.35654369,0.0003,2]
[341067643,1730322632929,-173.856507,0.00031258,2]
[341067644,1730322632939,-343.815748,0.00031589,2]
[341067645,1730322632951,-246.4046848,0.00031858,2]
[341067646,1730322632960,-343.815748,0.00032274,2]
[341067647,1730322632970,-343.815748,0.00032959,2]
[341067648,1730322632979,-212.5062592,0.000333,2]
[341067649,1730322632989,-160.0,0.00034187,3]
[341067651,1730322632998,-212.50625919,0.00034276,2]
[341067653,1730322633009,-1255.57405471,0.00034376,2]
[341067655,1730322633021,-347.74360774,0.00034376,2]
[341067677,1730322638939,-596.19585117,0.00034376,2]
[341067725,1730322644969,-1167.49999999,0.00034376,2]
[341067740,1730322646865,-423.55098565,0.00034376,2]
[341067741,1730322646874,-2051.28091649,0.00034376,2]
[341067742,1730322646884,-161.36,0.00034466,10]
[341067743,1730322646893,-806.83,0.00034466,10]
[341067744,1730322646903,-2841.64,0.00034471,120]
[341067745,1730322646912,-500.0,0.00034473,5]
[341067746,1730322646922,-154.4290107,0.00034473,5]
[341067748,1730322737805,524.2292257,0.00027,30]
[341067749,1730322744258,500.0,0.00027,30]
[341067750,1730322744613,702.45504132,0.00027,30]
[341067751,1730322745739,500.0,0.00027,30]
[341067752,1730322747049,99.62722454,0.00027,30]
[341067754,1730322799771,162.01402,0.00013973,2]
[341067757,1730323391767,165.202339,0.00013973,2]
[341067764,1730323556230,-300.0,0.00026999,2]
[341067765,1730323556253,-300.0,0.00026999,2]
[341067766,1730323556276,-306.82144261,0.00027,30]
[341067777,1730323727919,-3600.72423577,0.00020377,2]
[341067778,1730323745121,-5832.49557235,0.0002061,2]
[341067782,1730323758103,-165.07059349,0.00025,2]
[341067783,1730323758124,-202.91029491,0.00025,2]
[341067784,1730323758147,-419.4170337,0.00027,30]
[341067785,1730323773097,-273.76152369,0.00027,30]
[341067786,1730323773122,-500.0,0.00027,30]
[341067787,1730323773143,-500.0,0.00027,30]
[341067788,1730323773164,-830.82859621,0.00027,30]
[341067789,1730323773185,-500.0,0.00027,30]
[341067790,1730323773206,-500.0,0.00027,30]
[341067791,1730323773228,-500.0,0.00027,30]
[341067792,1730323773250,-500.0,0.00027,30]
[341067793,1730323773271,-553.31670534,0.00027,30]
[341067794,1730323773292,-876.18493297,0.00027,30]
[341067795,1730323773320,-653.64802276,0.0002799,2]
[341067850,1730323838091,-5408.67266121,0.0002799,2]
[341067852,1730323838103,-19376.98982249,0.0002799,2]
[341067853,1730323838281,-489.33418964,0.0002799,2]
[341067870,1730323840059,-0.00550712,0.0002799,2]
[341067871,1730323840070,-1159.10193269,0.0002799,2]
[341067872,1730323840079,-2642.95377795,0.0003,2]
[341067873,1730323840091,-5213.87076658,0.0003,2]
[341067874,1730323840100,-930.77110093,0.0003,2]
[341067875,1730323840111,-831.95662087,0.0003,2]
[341067887,1730323843130,-2555.35637753,0.0003,2]
[341068173,1730324035766,163.359099,0.00013973,2]
[341068179,1730324752143,-163.359099,0.00024224,2]
[341068180,1730324752164,-162.0,0.00027786,2]
[341068181,1730324752185,-300.0,0.00027786,2]
[341068182,1730324752205,-773.32809591,0.00027787,2]
[341068183,1730324834106,-156.38053358,0.0002749,15]
[341068184,1730324948139,-43.61946642,0.0002749,15]
[341068185,1730324948162,-360.9482796,0.00027787,2]
[341068186,1730324953249,-17817.38942179,0.00027787,2]
[341068187,1730324953276,-2340.14344314,0.00028079,2]
[341068188,1730324953298,-5886.74318846,0.00029609,2]
[341068189,1730324953319,-3255.8720877,0.0003,2]
[341068190,1730324953342,-151.0,0.0003,120]
[341068191,1730324953363,-3704.34578046,0.00030127,2]
[341068192,1730324953384,-152.3062114,0.00030227,2]
[341068193,1730324953407,-500.0,0.00030227,2]
[341068194,1730324953428,-500.0,0.00030227,2]
[341068195,1730324953449,-500.0,0.00030227,2]
[341068196,1730324953469,-500.0,0.00030227,2]
[341068197,1730324953490,-500.0,0.00030227,2]
[341068198,1730324953510,-500.0,0.00030227,2]
[341068199,1730324953531,-500.0,0.00030227,2]
[341068200,1730324953553,-500.0,0.00030227,2]
[341068201,1730324953574,-500.0,0.00030227,2]
[341068202,1730324953596,-500.0,0.00030227,2]
[341068203,1730324953620,-500.0,0.00030227,2]
[341068204,1730324953642,-500.0,0.00030227,2]
[341068205,1730324953663,-500.0,0.00030227,2]
[341068206,1730324953687,-500.0,0.00030227,2]
[341068207,1730324953710,-500.0,0.00030227,2]
[341068208,1730324953733,-500.0,0.00030227,2]
[341068209,1730324953754,-500.0,0.00030227,2]
[341068210,1730324953774,-500.0,0.00030227,2]
[341068211,1730324953798,-500.0,0.00030227,2]
[341068212,1730324953821,-500.0,0.00030227,2]
[341068213,1730324953842,-500.0,0.00030227,2]
[341068214,1730324953863,-500.0,0.00030227,2]
[341068215,1730324953888,-500.0,0.00030227,2]
[341068216,1730324953910,-500.0,0.00030227,2]
[341068217,1730324953933,-500.0,0.00030227,2]
[341068218,1730324953955,-500.0,0.00030227,2]
[341068219,1730324953977,-500.0,0.00030227,2]
[341068220,1730324953998,-500.0,0.00030227,2]
[341068221,1730324954020,-500.0,0.00030227,2]
[341068222,1730324954042,-500.0,0.00030227,2]
[341068223,1730324954062,-500.0,0.00030227,2]
[341068224,1730324954084,-500.0,0.00030227,2]
[341068225,1730324954104,-500.0,0.00030227,2]
[341068226,1730324954125,-500.0,0.00030227,2]
[341068227,1730324954147,-500.0,0.00030227,2]
[341068228,1730324954169,-500.0,0.00030227,2]
[341068229,1730324954192,-500.0,0.00030227,2]
[341068230,1730324954214,-500.0,0.00030227,2]
[341068231,1730324954236,-201.26181634,0.00030227,2]
[341068232,1730324954259,-342.51410708,0.00030227,2]
[341068233,1730324954281,-500.0,0.00030227,2]
[341068234,1730324954306,-500.0,0.00030227,2]
[341068235,1730324954328,-500.0,0.00030227,2]
[341068236,1730324954350,-500.0,0.00030227,2]
[341068237,1730324954375,-500.0,0.00030227,2]
[341068238,1730324954397,-500.0,0.00030227,2]
[341068239,1730324954421,-500.0,0.00030227,2]
[341068240,1730324954446,-500.0,0.00030227,2]
[341068241,1730324954467,-500.0,0.00030227,2]
[341068242,1730324954494,-500.0,0.00030227,2]
[341068243,1730324954518,-500.0,0.00030227,2]
[341068244,1730324954542,-500.0,0.00030227,2]
[341068245,1730324954564,-500.0,0.00030227,2]
[341068246,1730324954585,-500.0,0.00030227,2]
[341068247,1730324954606,-500.0,0.00030227,2]
[341068248,1730324954627,-805.84186701,0.00030228,7]
[341068249,1730324954649,-187.2713865,0.0003065,2]
[341068250,1730324954670,-300.40152646,0.00030975,5]
[341068251,1730324956165,-199.59847354,0.00030975,5]
[341068252,1730324956194,-508.96719328,0.00030975,5]
[341068253,1730324956215,-500.0,0.00030975,5]
[341068254,1730324961100,-150.0,0.000317,9]
[341068255,1730324961122,-151.0,0.00031753,120]
[341068256,1730324961143,-1914.15100831,0.00031809,2]
[341068257,1730324970235,-1790.19477213,0.00031809,2]
[341068258,1730324970257,-151.216,0.0003199,5]
[341068259,1730324970279,-401.92370324,0.00032,120]
[341068260,1730324970300,-3724.03800148,0.00032,5]
[341068261,1730324970322,-151.135,0.0003279,30]
[341068262,1730324970343,-168.63446517,0.00032877,2]
[341068263,1730324970365,-212.26878773,0.000329,2]
[341068264,1730324970386,-1155.65,0.0003299,3]
[341068265,1730324970407,-481.52,0.0003299,3]
[341068266,1730324970429,-240.76,0.0003299,3]
[341068267,1730324970452,-722.3,0.0003299,3]
[341068268,1730324970475,-196.70060513,0.00032999,7]
[341068269,1730324970496,-199.50683911,0.00032999,7]
[341068270,1730324970517,-265.13874562,0.00032999,7]
[341068271,1730324970537,-500.0,0.00032999,7]
[341068272,1730324970558,-450.21985041,0.00032999,7]
[341068273,1730324970579,-500.0,0.00032999,7]
[341068274,1730324970600,-500.0,0.00032999,7]
[341068275,1730324970621,-500.0,0.00032999,7]
[341068276,1730324970644,-213.47728155,0.00032999,7]
[341068277,1730324970665,-33498.03995614,0.00033,2]
[341068278,1730325007650,564.1539558,0.00029974,2]
[341068279,1730325008758,469.95769779,0.00031473,2]
[341068280,1730325024152,537.22791134,0.00031473,7]
[341068286,1730325034622,200.0,0.000293,120]
[341068316,1730325038396,-155.40968832,0.00033,2]
[341068430,1730325046255,116.89476825,0.0003,2]
[341068431,1730325046278,73.10523175,0.0003,2]
[341068432,1730325046295,-1511.46575346,0.00033,2]
[341068433,1730325046305,-500.99067417,0.00033441,2]
[341068434,1730325046317,-151.0,0.00033507,120]
[341068435,1730325046327,-151.125,0.0003359,10]
[341068436,1730325046339,-463.07106435,0.00033696,5]
[341068437,1730325046349,-500.0,0.00033696,5]
[341068438,1730325046358,-184.0,0.000338,7]
[341068439,1730325046367,-910.61480227,0.00034182,3]
[341068440,1730325046578,190.0,0.00030411,2]
[341068442,1730325062517,162.959813,0.00013973,2]
[341068443,1730325062723,37.12887945,0.00025156,2]
[341068444,1730325062761,125.83093355,0.00025156,2]
[341068445,1730325083297,501.0,0.00034425,30]
[341068446,1730325083993,376.0,0.00034425,30]
[341068447,1730325084524,375.1501,0.00034425,30]
[341068448,1730325084856,281.2865,0.00034425,30]
[341068449,1730325102393,466.5,0.00034425,30]
[341068453,1730325607107,160.865238,0.00013973,2]
[341068455,1730326029246,-241.0,0.0003,2]
[341068456,1730326029268,-160.0,0.0003,2]
[341068457,1730326029290,-57.42858893,0.00030411,2]
[341068458,1730326032177,-183.57141107,0.00030411,2]
[341068459,1730326032211,-5.4347266,0.00031644,2]
[341068461,1730326046104,-235.5652734,0.00031644,2]
[341068462,1730326046126,-161.7836117,0.00032294,2]
[341068463,1730326046152,-400.0,0.00032349,2]
[341068464,1730326046176,-150.376,0.00032351,2]
[341068465,1730326046199,-528.0,0.00032351,2]
[341068466,1730326046221,-1143.0,0.00032351,2]
[341068467,1730326046243,-2395.0,0.00032351,2]
[341068468,1730326046264,-500.0,0.00032876,2]
[341068469,1730326046283,-5916.55950166,0.00033093,2]
[341068470,1730326046304,-5916.55950166,0.00033163,2]
[341068471,1730326046324,-248.0,0.00033226,2]
[341068472,1730326046344,-228.0,0.00033365,2]
[341068473,1730326046365,-160.0,0.00034187,3]
[341068474,1730326046386,-153.0,0.00034247,2]
[341068475,1730326046407,-153.0,0.00034247,2]